[Event "Titled Tuesday Blitz June 07 Late 2022"]
[White "Svane, Rasmus"]
[Black "Stearman, Josiah"]
[WhiteFideId "4657101"]
[BlackFideId "2062496"]
[WhiteElo "2674"]
[BlackElo "2402"]
[Result "1-0"]
[Round "02"]
[TimeControl "180+1"]
[Date "2022.06.07"]
[WhiteClock "0:00:05"]
[BlackClock "0:00:05"]

1. Nf3 {[%clk 0:02:58]}  d5 {[%clk 0:02:59]} 2. g3 {[%clk 0:02:57]}  Nf6 {[%clk 0:02:59]} 3. Bg2 {[%clk 0:02:58]}  c6 {[%clk 0:03:00]} 4. O-O {[%clk 0:02:58]}  g6 {[%clk 0:03:00]} 5. c4 {[%clk 0:02:57]}  Bg7 {[%clk 0:03:01]} 6. Qb3 {[%clk 0:02:57]}  O-O {[%clk 0:03:02]} 7. d4 {[%clk 0:02:58]}  Ne4 {[%clk 0:02:57]} 8. Nc3 {[%clk 0:02:55]}  Nxc3 {[%clk 0:02:56]} 9. bxc3 {[%clk 0:02:56]}  Bd7 {[%clk 0:02:57]} 10. cxd5 {[%clk 0:02:56]}  cxd5 {[%clk 0:02:55]} 11. Qxd5 {[%clk 0:02:51]}  Nc6 {[%clk 0:02:52]} 12. Rb1 {[%clk 0:02:41]}  Qc8 {[%clk 0:02:36]} 13. Bf4 {[%clk 0:02:26]}  Be6 {[%clk 0:02:32]} 14. Qb5 {[%clk 0:02:26]}  Bxa2 {[%clk 0:02:29]} 15. Rb2 {[%clk 0:02:27]}  Be6 {[%clk 0:02:10]} 16. d5 {[%clk 0:02:11]}  a6 {[%clk 0:02:09]} 17. Qb3 {[%clk 0:01:46]}  Na5 {[%clk 0:02:02]} 18. Qa2 {[%clk 0:01:36]}  Qxc3 {[%clk 0:01:56]} 19. dxe6 {[%clk 0:01:24]}  Qxb2 {[%clk 0:01:54]} 20. exf7+ {[%clk 0:01:25]}  Kh8 {[%clk 0:01:47]} 21. Qxa5 {[%clk 0:01:26]}  Qxe2 {[%clk 0:01:42]} 22. Re1 {[%clk 0:01:17]}  Qb5 {[%clk 0:01:41]} 23. Qa2 {[%clk 0:01:06]}  Rac8 {[%clk 0:01:32]} 24. Ng5 {[%clk 0:01:02]}  e5 {[%clk 0:01:21]} 25. Be3 {[%clk 0:00:57]}  Qb4 {[%clk 0:01:06]} 26. Rb1 {[%clk 0:00:53]}  Qc3 {[%clk 0:00:59]} 27. h4 {[%clk 0:00:44]}  b5 {[%clk 0:00:42]} 28. Ne6 {[%clk 0:00:34]}  Rxf7 {[%clk 0:00:38]} 29. Ng5 {[%clk 0:00:34]}  Rfc7 {[%clk 0:00:26]} 30. Bb6 {[%clk 0:00:19]}  Rc4 {[%clk 0:00:21]} 31. Bd5 {[%clk 0:00:17]}  h6 {[%clk 0:00:20]} 32. Nf7+ {[%clk 0:00:14]}  Kh7 {[%clk 0:00:20]} 33. Nd6 {[%clk 0:00:10]}  Qd3 {[%clk 0:00:10]} 34. Bxc4 {[%clk 0:00:07]}  Qxd6 {[%clk 0:00:10]} 35. Be6 {[%clk 0:00:06]}  Rc6 {[%clk 0:00:06]} 36. Bg8+ {[%clk 0:00:05]}  Kh8 {[%clk 0:00:06]} 37. Be3 {[%clk 0:00:06]}  e4 {[%clk 0:00:05]} 38. Bd5 {[%clk 0:00:05]}  Rc3 {[%clk 0:00:04]} 39. Bxe4 {[%clk 0:00:05]}  Rc4 {[%clk 0:00:04]} 40. Bg2 {[%clk 0:00:03]}  Ra4 {[%clk 0:00:03]} 41. Qe2 {[%clk 0:00:03]}  Qf6 {[%clk 0:00:01]} 42. Rd1 {[%clk 0:00:04]}  Ra1 {[%clk 0:00:02]} 43. Rxa1 {[%clk 0:00:03]}  Qxa1+ {[%clk 0:00:03]} 44. Kh2 {[%clk 0:00:04]}  Qf6 {[%clk 0:00:04]} 45. Qg4 {[%clk 0:00:04]}  Kh7 {[%clk 0:00:04]} 46. h5 {[%clk 0:00:04]}  Qf5 {[%clk 0:00:04]} 47. hxg6+ {[%clk 0:00:05]}  Qxg6 {[%clk 0:00:05]} 48. Be4 {[%clk 0:00:05]} 1-0


[Site "https://www.chess.com"]

[Event "Titled Tuesday Blitz June 07 Late 2022"]
[White "Tarigan, Gilbert Elroy"]
[Black "Xiong, Jeffery"]
[WhiteFideId "7108133"]
[BlackFideId "2047640"]
[WhiteElo "1908"]
[BlackElo "2714"]
[Result "0-1"]
[Round "02"]
[TimeControl "180+1"]
[Date "2022.06.07"]
[WhiteClock "0:00:02"]
[BlackClock "0:00:13"]

1. d4 {[%clk 0:03:00]}  d5 {[%clk 0:02:58]} 2. Nf3 {[%clk 0:03:01]}  Nf6 {[%clk 0:02:57]} 3. c4 {[%clk 0:03:01]}  e6 {[%clk 0:02:58]} 4. g3 {[%clk 0:03:00]}  dxc4 {[%clk 0:02:58]} 5. Bg2 {[%clk 0:03:00]}  c6 {[%clk 0:02:58]} 6. O-O {[%clk 0:02:59]}  b5 {[%clk 0:02:59]} 7. Ne5 {[%clk 0:02:55]}  Bb7 {[%clk 0:02:59]} 8. b3 {[%clk 0:02:47]}  cxb3 {[%clk 0:03:00]} 9. axb3 {[%clk 0:02:47]}  Be7 {[%clk 0:02:52]} 10. Nc3 {[%clk 0:02:33]}  a6 {[%clk 0:02:52]} 11. Bb2 {[%clk 0:02:27]}  O-O {[%clk 0:02:51]} 12. Qc2 {[%clk 0:02:26]}  Qb6 {[%clk 0:02:50]} 13. Ne4 {[%clk 0:02:23]}  Nfd7 {[%clk 0:02:39]} 14. Nd3 {[%clk 0:02:19]}  a5 {[%clk 0:02:37]} 15. Rfc1 {[%clk 0:02:19]}  Na6 {[%clk 0:02:37]} 16. h4 {[%clk 0:02:16]}  h6 {[%clk 0:02:33]} 17. e3 {[%clk 0:02:06]}  Rfc8 {[%clk 0:02:32]} 18. Qe2 {[%clk 0:02:01]}  Qd8 {[%clk 0:01:57]} 19. Qh5 {[%clk 0:01:54]}  f5 {[%clk 0:01:55]} 20. Nd2 {[%clk 0:01:50]}  Bd6 {[%clk 0:01:54]} 21. Nf3 {[%clk 0:01:41]}  c5 {[%clk 0:01:51]} 22. Ng5 {[%clk 0:01:29]}  Bxg2 {[%clk 0:01:31]} 23. Qf7+ {[%clk 0:01:29]}  Kh8 {[%clk 0:01:32]} 24. Nxe6 {[%clk 0:01:30]}  Qe7 {[%clk 0:00:57]} 25. Qxe7 {[%clk 0:01:22]}  Bxe7 {[%clk 0:00:58]} 26. Kxg2 {[%clk 0:01:21]}  c4 {[%clk 0:00:58]} 27. bxc4 {[%clk 0:01:18]}  bxc4 {[%clk 0:00:59]} 28. Ndf4 {[%clk 0:01:13]}  Bb4 {[%clk 0:00:59]} 29. d5 {[%clk 0:01:10]}  c3 {[%clk 0:00:59]} 30. Ba3 {[%clk 0:01:05]}  Ne5 {[%clk 0:00:56]} 31. Nd4 {[%clk 0:00:56]}  g6 {[%clk 0:00:50]} 32. h5 {[%clk 0:00:52]}  g5 {[%clk 0:00:50]} 33. Nfe6 {[%clk 0:00:49]}  Nd3 {[%clk 0:00:47]} 34. Rd1 {[%clk 0:00:32]}  Bxa3 {[%clk 0:00:47]} 35. Rxd3 {[%clk 0:00:30]}  Nb4 {[%clk 0:00:48]} 36. Rdd1 {[%clk 0:00:20]}  Bb2 {[%clk 0:00:44]} 37. Rab1 {[%clk 0:00:16]}  Nxd5 {[%clk 0:00:44]} 38. Nc2 {[%clk 0:00:11]}  Nb4 {[%clk 0:00:42]} 39. Ned4 {[%clk 0:00:11]}  Nxc2 {[%clk 0:00:39]} 40. Nxc2 {[%clk 0:00:12]}  a4 {[%clk 0:00:40]} 41. Rd6 {[%clk 0:00:07]}  Kg7 {[%clk 0:00:30]} 42. Rbd1 {[%clk 0:00:04]}  Rc7 {[%clk 0:00:16]} 43. Rg6+ {[%clk 0:00:04]}  Kh8 {[%clk 0:00:16]} 44. Rxh6+ {[%clk 0:00:02]}  Rh7 {[%clk 0:00:17]} 45. Rf6 {[%clk 0:00:02]}  a3 {[%clk 0:00:17]} 46. Nb4 {[%clk 0:00:02]}  Rb7 {[%clk 0:00:14]} 47. Na2 {[%clk 0:00:03]}  c2 {[%clk 0:00:13]} 48. Re1 {[%clk 0:00:02]}  Bxf6 {[%clk 0:00:13]} 0-1


[Site "https://www.chess.com"]

[Event "Titled Tuesday Blitz June 07 Late 2022"]
[White "Vasquez Schroeder, Rodrigo"]
[Black "Leschinsky, Gary"]
[WhiteFideId "3400042"]
[BlackFideId "30951321"]
[WhiteElo "2567"]
[BlackElo "1809"]
[Result "1-0"]
[Round "02"]
[TimeControl "180+1"]
[Date "2022.06.07"]
[WhiteClock "0:01:08"]
[BlackClock "0:00:04"]

1. e4 {[%clk 0:03:00]}  c5 {[%clk 0:03:00]} 2. Nf3 {[%clk 0:03:00]}  e6 {[%clk 0:03:00]} 3. d4 {[%clk 0:03:01]}  cxd4 {[%clk 0:03:00]} 4. Nxd4 {[%clk 0:03:02]}  a6 {[%clk 0:03:00]} 5. Bd3 {[%clk 0:03:02]}  Bc5 {[%clk 0:03:00]} 6. Nb3 {[%clk 0:03:02]}  Ba7 {[%clk 0:03:00]} 7. Qe2 {[%clk 0:03:01]}  Nc6 {[%clk 0:02:59]} 8. Be3 {[%clk 0:03:02]}  Nf6 {[%clk 0:02:57]} 9. O-O {[%clk 0:03:02]}  O-O {[%clk 0:02:57]} 10. Bxa7 {[%clk 0:03:01]}  Rxa7 {[%clk 0:02:56]} 11. Qe3 {[%clk 0:03:01]}  b5 {[%clk 0:02:47]} 12. N1d2 {[%clk 0:02:48]}  d6 {[%clk 0:02:45]} 13. c3 {[%clk 0:02:47]}  Rc7 {[%clk 0:02:40]} 14. f4 {[%clk 0:02:41]}  Nd7 {[%clk 0:02:34]} 15. a4 {[%clk 0:02:35]}  Rb7 {[%clk 0:02:25]} 16. axb5 {[%clk 0:02:35]}  axb5 {[%clk 0:02:26]} 17. Ra6 {[%clk 0:02:29]}  Qc7 {[%clk 0:02:21]} 18. Rfa1 {[%clk 0:02:26]}  Rb8 {[%clk 0:02:17]} 19. R6a2 {[%clk 0:02:23]}  Rd8 {[%clk 0:02:02]} 20. Be2 {[%clk 0:02:20]}  b4 {[%clk 0:01:55]} 21. c4 {[%clk 0:02:17]}  Nc5 {[%clk 0:01:44]} 22. Bf3 {[%clk 0:02:13]}  Qb6 {[%clk 0:01:39]} 23. Kh1 {[%clk 0:02:09]}  Bd7 {[%clk 0:01:06]} 24. h3 {[%clk 0:01:49]}  Nxb3 {[%clk 0:00:48]} 25. Qxb6 {[%clk 0:01:48]}  Rxb6 {[%clk 0:00:48]} 26. Nxb3 {[%clk 0:01:49]}  g6 {[%clk 0:00:40]} 27. Ra6 {[%clk 0:01:46]}  Rbb8 {[%clk 0:00:33]} 28. e5 {[%clk 0:01:42]}  dxe5 {[%clk 0:00:17]} 29. Bxc6 {[%clk 0:01:41]}  Bxc6 {[%clk 0:00:17]} 30. Rxc6 {[%clk 0:01:40]}  exf4 {[%clk 0:00:18]} 31. Rf1 {[%clk 0:01:27]}  e5 {[%clk 0:00:16]} 32. Re1 {[%clk 0:01:21]}  f6 {[%clk 0:00:13]} 33. Rxf6 {[%clk 0:01:20]}  Re8 {[%clk 0:00:12]} 34. Nc5 {[%clk 0:01:17]}  Kg7 {[%clk 0:00:11]} 35. Rd6 {[%clk 0:01:15]}  Rbc8 {[%clk 0:00:11]} 36. Ne6+ {[%clk 0:01:15]}  Kh8 {[%clk 0:00:08]} 37. c5 {[%clk 0:01:13]}  h6 {[%clk 0:00:03]} 38. Rxe5 {[%clk 0:01:12]}  Re7 {[%clk 0:00:04]} 39. c6 {[%clk 0:01:09]}  b3 {[%clk 0:00:04]} 40. Nxf4 {[%clk 0:01:08]} 1-0


[Site "https://www.chess.com"]

[Event "Titled Tuesday Blitz June 07 Late 2022"]
[White "Abdrlauf, Elham"]
[Black "Sarana, Alexey"]
[WhiteFideId "1533533"]
[BlackFideId "24133795"]
[WhiteElo "2403"]
[BlackElo "2666"]
[Result "1-0"]
[Round "03"]
[TimeControl "180+1"]
[Date "2022.06.07"]
[WhiteClock "0:00:24"]
[BlackClock "0:00:01"]

1. e4 {[%clk 0:02:57]}  c5 {[%clk 0:03:00]} 2. Nf3 {[%clk 0:02:55]}  d6 {[%clk 0:03:01]} 3. d4 {[%clk 0:02:55]}  cxd4 {[%clk 0:03:02]} 4. Nxd4 {[%clk 0:02:56]}  Nf6 {[%clk 0:03:02]} 5. Nc3 {[%clk 0:02:56]}  a6 {[%clk 0:03:03]} 6. Bc4 {[%clk 0:02:56]}  e6 {[%clk 0:03:03]} 7. Bb3 {[%clk 0:02:56]}  b5 {[%clk 0:03:03]} 8. f4 {[%clk 0:02:56]}  b4 {[%clk 0:02:55]} 9. Na4 {[%clk 0:02:56]}  Be7 {[%clk 0:02:53]} 10. e5 {[%clk 0:02:54]}  dxe5 {[%clk 0:02:53]} 11. fxe5 {[%clk 0:02:55]}  Nd5 {[%clk 0:02:53]} 12. O-O {[%clk 0:02:40]}  O-O {[%clk 0:02:53]} 13. Nf5 {[%clk 0:02:26]}  Bb7 {[%clk 0:02:28]} 14. Nxe7+ {[%clk 0:02:13]}  Qxe7 {[%clk 0:02:29]} 15. Qg4 {[%clk 0:02:11]}  Kh8 {[%clk 0:02:28]} 16. Bg5 {[%clk 0:02:09]}  Qc7 {[%clk 0:02:27]} 17. Rae1 {[%clk 0:02:03]}  Nd7 {[%clk 0:02:22]} 18. Qg3 {[%clk 0:01:49]}  Rae8 {[%clk 0:02:22]} 19. c4 {[%clk 0:01:43]}  bxc3 {[%clk 0:02:15]} 20. Nxc3 {[%clk 0:01:43]}  Nxc3 {[%clk 0:02:13]} 21. bxc3 {[%clk 0:01:43]}  Qc5+ {[%clk 0:01:03]} 22. Kh1 {[%clk 0:01:26]}  f5 {[%clk 0:00:58]} 23. exf6 {[%clk 0:01:22]}  gxf6 {[%clk 0:00:57]} 24. Bxe6 {[%clk 0:00:42]}  Rxe6 {[%clk 0:00:20]} 25. Rxe6 {[%clk 0:00:43]}  fxg5 {[%clk 0:00:21]} 26. Rxf8+ {[%clk 0:00:42]}  Qxf8 {[%clk 0:00:21]} 27. h3 {[%clk 0:00:38]}  h6 {[%clk 0:00:15]} 28. Kh2 {[%clk 0:00:35]}  Qf1 {[%clk 0:00:04]} 29. Rxh6+ {[%clk 0:00:33]}  Kg8 {[%clk 0:00:03]} 30. Qxg5+ {[%clk 0:00:33]}  Kf8 {[%clk 0:00:01]} 31. Rh7 {[%clk 0:00:24]} 1-0


[Site "https://www.chess.com"]

[Event "Titled Tuesday Blitz June 07 Late 2022"]
[White "Andreikin, Dmitry"]
[Black "Licznerski, Lukasz"]
[WhiteFideId "4158814"]
[BlackFideId "1179250"]
[WhiteElo "2736"]
[BlackElo "2387"]
[Result "0-1"]
[Round "03"]
[TimeControl "180+1"]
[Date "2022.06.07"]
[WhiteClock "0:00:18"]
[BlackClock "0:00:08"]

1. d4 {[%clk 0:03:00]}  Nf6 {[%clk 0:03:00]} 2. c4 {[%clk 0:03:01]}  g6 {[%clk 0:03:00]} 3. Nc3 {[%clk 0:03:00]}  d5 {[%clk 0:03:01]} 4. cxd5 {[%clk 0:03:00]}  Nxd5 {[%clk 0:03:02]} 5. e4 {[%clk 0:03:00]}  Nxc3 {[%clk 0:03:02]} 6. bxc3 {[%clk 0:03:01]}  Bg7 {[%clk 0:03:03]} 7. Be3 {[%clk 0:03:01]}  c5 {[%clk 0:03:03]} 8. Qd2 {[%clk 0:03:01]}  cxd4 {[%clk 0:02:58]} 9. cxd4 {[%clk 0:03:00]}  Nc6 {[%clk 0:02:59]} 10. Rd1 {[%clk 0:03:00]}  O-O {[%clk 0:02:57]} 11. Be2 {[%clk 0:03:00]}  e6 {[%clk 0:02:42]} 12. Nf3 {[%clk 0:02:56]}  Qa5 {[%clk 0:02:24]} 13. h4 {[%clk 0:02:44]}  b6 {[%clk 0:02:02]} 14. h5 {[%clk 0:02:41]}  Bb7 {[%clk 0:01:59]} 15. O-O {[%clk 0:02:31]}  Qxd2 {[%clk 0:01:48]} 16. Rxd2 {[%clk 0:02:32]}  Rfd8 {[%clk 0:01:40]} 17. h6 {[%clk 0:02:31]}  Bf6 {[%clk 0:01:38]} 18. Rfd1 {[%clk 0:02:29]}  Rac8 {[%clk 0:01:35]} 19. d5 {[%clk 0:02:21]}  exd5 {[%clk 0:01:33]} 20. Rxd5 {[%clk 0:02:19]}  Rxd5 {[%clk 0:01:08]} 21. Rxd5 {[%clk 0:02:20]}  Rd8 {[%clk 0:01:04]} 22. Bc4 {[%clk 0:02:12]}  Nb4 {[%clk 0:00:45]} 23. Rxd8+ {[%clk 0:02:09]}  Bxd8 {[%clk 0:00:45]} 24. Ne5 {[%clk 0:02:01]}  Bxe4 {[%clk 0:00:34]} 25. Bd2 {[%clk 0:01:42]}  Be7 {[%clk 0:00:26]} 26. Nxf7 {[%clk 0:01:33]}  Bd5 {[%clk 0:00:23]} 27. Bxd5 {[%clk 0:01:19]}  Nxd5 {[%clk 0:00:24]} 28. Ne5 {[%clk 0:01:19]}  Bf6 {[%clk 0:00:20]} 29. Nc6 {[%clk 0:01:16]}  a5 {[%clk 0:00:18]} 30. f4 {[%clk 0:01:14]}  Kf7 {[%clk 0:00:14]} 31. Kf2 {[%clk 0:01:14]}  Bc3 {[%clk 0:00:12]} 32. Bc1 {[%clk 0:01:03]}  Ke6 {[%clk 0:00:12]} 33. Kf3 {[%clk 0:01:03]}  Kd7 {[%clk 0:00:10]} 34. Na7 {[%clk 0:01:01]}  Nc7 {[%clk 0:00:08]} 35. Ke4 {[%clk 0:00:58]}  b5 {[%clk 0:00:05]} 36. g4 {[%clk 0:00:55]}  a4 {[%clk 0:00:03]} 37. f5 {[%clk 0:00:47]}  gxf5+ {[%clk 0:00:04]} 38. Kxf5 {[%clk 0:00:48]}  b4 {[%clk 0:00:05]} 39. g5 {[%clk 0:00:48]}  Bd4 {[%clk 0:00:03]} 40. g6 {[%clk 0:00:43]}  hxg6+ {[%clk 0:00:04]} 41. Kxg6 {[%clk 0:00:44]}  Bxa7 {[%clk 0:00:04]} 42. Bb2 {[%clk 0:00:44]}  Ne6 {[%clk 0:00:04]} 43. Bg7 {[%clk 0:00:38]}  b3 {[%clk 0:00:02]} 44. axb3 {[%clk 0:00:37]}  axb3 {[%clk 0:00:03]} 45. h7 {[%clk 0:00:36]}  Nf8+ {[%clk 0:00:03]} 46. Bxf8 {[%clk 0:00:34]}  b2 {[%clk 0:00:03]} 47. h8=Q {[%clk 0:00:30]}  b1=Q+ {[%clk 0:00:04]} 48. Kf7 {[%clk 0:00:28]}  Qb3+ {[%clk 0:00:04]} 49. Kg6 {[%clk 0:00:28]}  Qg3+ {[%clk 0:00:04]} 50. Kf7 {[%clk 0:00:26]}  Qb3+ {[%clk 0:00:05]} 51. Kg6 {[%clk 0:00:26]}  Qd3+ {[%clk 0:00:05]} 52. Kf7 {[%clk 0:00:23]}  Qd5+ {[%clk 0:00:06]} 53. Kg6 {[%clk 0:00:24]}  Qe4+ {[%clk 0:00:06]} 54. Kg5 {[%clk 0:00:19]}  Be3+ {[%clk 0:00:05]} 55. Kh5 {[%clk 0:00:18]}  Qh1+ {[%clk 0:00:05]} 56. Kg6 {[%clk 0:00:18]}  Qxh8 {[%clk 0:00:06]} 57. Bg7 {[%clk 0:00:18]}  Qe8+ {[%clk 0:00:06]} 58. Kf5 {[%clk 0:00:18]}  Bc5 {[%clk 0:00:06]} 59. Be5 {[%clk 0:00:18]}  Qe6+ {[%clk 0:00:07]} 60. Ke4 {[%clk 0:00:18]}  Bd6 {[%clk 0:00:08]} 0-1


[Site "https://www.chess.com"]

[Event "Titled Tuesday Blitz June 07 Late 2022"]
[White "Araujo Sanchez, Josue"]
[Black "Bok, Benjamin"]
[WhiteFideId "6416896"]
[BlackFideId "1017063"]
[WhiteElo "2339"]
[BlackElo "2658"]
[Result "0-1"]
[Round "03"]
[TimeControl "180+1"]
[Date "2022.06.07"]
[WhiteClock "0:01:18"]
[BlackClock "0:01:53"]

1. e4 {[%clk 0:02:58]}  c5 {[%clk 0:03:00]} 2. Nf3 {[%clk 0:02:58]}  d6 {[%clk 0:03:00]} 3. d4 {[%clk 0:02:57]}  cxd4 {[%clk 0:03:01]} 4. Qxd4 {[%clk 0:02:57]}  Nf6 {[%clk 0:03:02]} 5. Bb5+ {[%clk 0:02:56]}  Bd7 {[%clk 0:03:01]} 6. a4 {[%clk 0:02:54]}  g6 {[%clk 0:03:01]} 7. O-O {[%clk 0:02:48]}  Bg7 {[%clk 0:03:01]} 8. h3 {[%clk 0:02:48]}  O-O {[%clk 0:03:01]} 9. Qe3 {[%clk 0:02:48]}  Nc6 {[%clk 0:02:57]} 10. Nc3 {[%clk 0:02:47]}  Rc8 {[%clk 0:02:56]} 11. Rd1 {[%clk 0:02:46]}  a6 {[%clk 0:02:54]} 12. Bxc6 {[%clk 0:02:34]}  Bxc6 {[%clk 0:02:51]} 13. e5 {[%clk 0:02:33]}  Ne8 {[%clk 0:02:48]} 14. exd6 {[%clk 0:02:30]}  Nxd6 {[%clk 0:02:48]} 15. Nd4 {[%clk 0:02:29]}  Re8 {[%clk 0:02:29]} 16. Qe2 {[%clk 0:02:21]}  Qa5 {[%clk 0:02:23]} 17. Nxc6 {[%clk 0:02:16]}  Rxc6 {[%clk 0:02:24]} 18. Nd5 {[%clk 0:02:13]}  e6 {[%clk 0:02:14]} 19. Ne3 {[%clk 0:01:54]}  b5 {[%clk 0:02:11]} 20. c3 {[%clk 0:01:52]}  b4 {[%clk 0:02:00]} 21. cxb4 {[%clk 0:01:31]}  Qxb4 {[%clk 0:02:01]} 22. Ra3 {[%clk 0:01:29]}  Rec8 {[%clk 0:01:58]} 23. Nf1 {[%clk 0:01:18]}  Rxc1 {[%clk 0:01:53]} 0-1


[Site "https://www.chess.com"]

[Event "Titled Tuesday Blitz June 07 Late 2022"]
[White "Barp, Alberto"]
[Black "Suleymanli, Aydin"]
[WhiteFideId "872555"]
[BlackFideId "13413937"]
[WhiteElo "2229"]
[BlackElo "2481"]
[Result "0-1"]
[Round "03"]
[TimeControl "180+1"]
[Date "2022.06.07"]
[WhiteClock "0:00:14"]
[BlackClock "0:00:07"]

1. d4 {[%clk 0:03:00]}  Nf6 {[%clk 0:02:55]} 2. c4 {[%clk 0:03:00]}  e6 {[%clk 0:02:51]} 3. g3 {[%clk 0:02:59]}  d5 {[%clk 0:02:48]} 4. Bg2 {[%clk 0:02:59]}  Be7 {[%clk 0:02:48]} 5. Nf3 {[%clk 0:02:58]}  O-O {[%clk 0:02:48]} 6. Nc3 {[%clk 0:02:52]}  dxc4 {[%clk 0:02:46]} 7. Ne5 {[%clk 0:02:52]}  c5 {[%clk 0:02:46]} 8. dxc5 {[%clk 0:02:53]}  Qxd1+ {[%clk 0:02:45]} 9. Nxd1 {[%clk 0:02:54]}  Bxc5 {[%clk 0:02:45]} 10. O-O {[%clk 0:02:54]}  Nc6 {[%clk 0:02:35]} 11. Bxc6 {[%clk 0:02:54]}  bxc6 {[%clk 0:02:35]} 12. Be3 {[%clk 0:02:55]}  Be7 {[%clk 0:02:29]} 13. Nxc6 {[%clk 0:02:53]}  Bd6 {[%clk 0:02:28]} 14. Bf4 {[%clk 0:02:45]}  Bc5 {[%clk 0:02:17]} 15. Be3 {[%clk 0:02:39]}  Bd6 {[%clk 0:01:46]} 16. Bf4 {[%clk 0:02:38]}  Bxf4 {[%clk 0:01:46]} 17. gxf4 {[%clk 0:02:38]}  Bb7 {[%clk 0:01:45]} 18. Na5 {[%clk 0:02:37]}  Ba6 {[%clk 0:01:45]} 19. Rc1 {[%clk 0:02:20]}  Rac8 {[%clk 0:01:39]} 20. Ne3 {[%clk 0:02:06]}  c3 {[%clk 0:01:39]} 21. Rxc3 {[%clk 0:02:06]}  Rxc3 {[%clk 0:01:39]} 22. bxc3 {[%clk 0:02:06]}  Bxe2 {[%clk 0:01:39]} 23. Rb1 {[%clk 0:02:05]}  Rc8 {[%clk 0:01:35]} 24. c4 {[%clk 0:01:56]}  g6 {[%clk 0:01:32]} 25. Rb2 {[%clk 0:01:51]}  Bf3 {[%clk 0:01:31]} 26. h3 {[%clk 0:01:38]}  Nh5 {[%clk 0:01:26]} 27. Kh2 {[%clk 0:01:37]}  Ba8 {[%clk 0:01:26]} 28. Rd2 {[%clk 0:01:29]}  Nxf4 {[%clk 0:01:17]} 29. Rd7 {[%clk 0:01:28]}  h5 {[%clk 0:01:16]} 30. Rxa7 {[%clk 0:01:26]}  Nd3 {[%clk 0:01:16]} 31. Kg1 {[%clk 0:01:24]}  Bf3 {[%clk 0:01:15]} 32. Nb3 {[%clk 0:01:21]}  Nf4 {[%clk 0:00:42]} 33. h4 {[%clk 0:01:11]}  Rd8 {[%clk 0:00:39]} 34. Kh2 {[%clk 0:01:06]}  Ne2 {[%clk 0:00:39]} 35. c5 {[%clk 0:01:02]}  Rb8 {[%clk 0:00:38]} 36. Ra4 {[%clk 0:01:00]}  Bc6 {[%clk 0:00:36]} 37. Ra6 {[%clk 0:00:56]}  Bf3 {[%clk 0:00:35]} 38. Ra4 {[%clk 0:00:53]}  Nc3 {[%clk 0:00:35]} 39. Rf4 {[%clk 0:00:50]}  Ba8 {[%clk 0:00:28]} 40. Nd2 {[%clk 0:00:43]}  Rb2 {[%clk 0:00:26]} 41. Ndc4 {[%clk 0:00:37]}  Rxa2 {[%clk 0:00:26]} 42. Ne5 {[%clk 0:00:36]}  Ra1 {[%clk 0:00:17]} 43. f3 {[%clk 0:00:37]}  Ra2+ {[%clk 0:00:15]} 44. Kh1 {[%clk 0:00:31]}  Re2 {[%clk 0:00:14]} 45. N3c4 {[%clk 0:00:25]}  Nd5 {[%clk 0:00:11]} 46. Rxf7 {[%clk 0:00:23]}  Ne3 {[%clk 0:00:11]} 47. Ra7 {[%clk 0:00:19]}  Bd5 {[%clk 0:00:11]} 48. Nxe3 {[%clk 0:00:14]}  Rxe3 {[%clk 0:00:09]} 49. c6 {[%clk 0:00:14]}  Rxe5 {[%clk 0:00:08]} 50. c7 {[%clk 0:00:14]}  Bxf3+ {[%clk 0:00:08]} 51. Kh2 {[%clk 0:00:15]}  Rc5 {[%clk 0:00:08]} 52. Kg3 {[%clk 0:00:15]}  Bh1 {[%clk 0:00:06]} 53. Kf4 {[%clk 0:00:15]}  Kf8 {[%clk 0:00:05]} 54. Ke3 {[%clk 0:00:16]}  Ke8 {[%clk 0:00:05]} 55. Kd4 {[%clk 0:00:16]}  Rc6 {[%clk 0:00:06]} 56. Ra8+ {[%clk 0:00:13]}  Kd7 {[%clk 0:00:05]} 57. Rg8 {[%clk 0:00:13]}  Kxc7 {[%clk 0:00:05]} 58. Rg7+ {[%clk 0:00:13]}  Kd6 {[%clk 0:00:05]} 59. Rxg6 {[%clk 0:00:14]}  Bf3 {[%clk 0:00:05]} 60. Rf6 {[%clk 0:00:14]}  Bg4 {[%clk 0:00:05]} 61. Rh6 {[%clk 0:00:14]}  Rc5 {[%clk 0:00:06]} 62. Ke4 {[%clk 0:00:13]}  Re5+ {[%clk 0:00:06]} 63. Kf4 {[%clk 0:00:13]}  Kd5 {[%clk 0:00:06]} 64. Rh8 {[%clk 0:00:13]}  Rf5+ {[%clk 0:00:06]} 65. Ke3 {[%clk 0:00:14]}  Rf3+ {[%clk 0:00:07]} 66. Kd2 {[%clk 0:00:14]}  Rh3 {[%clk 0:00:07]} 0-1


[Site "https://www.chess.com"]

[Event "Titled Tuesday Blitz June 07 Late 2022"]
[White "Boder, Jan"]
[Black "Wieczorek, Oskar"]
[WhiteFideId "16243226"]
[BlackFideId "1133950"]
[WhiteElo "2064"]
[BlackElo "2330"]
[Result "0-1"]
[Round "03"]
[TimeControl "180+1"]
[Date "2022.06.07"]
[WhiteClock "0:00:04"]
[BlackClock "0:01:05"]

1. c4 {[%clk 0:03:00]}  Nf6 {[%clk 0:03:00]} 2. g3 {[%clk 0:02:56]}  h5 {[%clk 0:02:58]} 3. Nf3 {[%clk 0:02:53]}  c5 {[%clk 0:02:57]} 4. Nc3 {[%clk 0:02:38]}  Nc6 {[%clk 0:02:56]} 5. Bg2 {[%clk 0:02:38]}  d6 {[%clk 0:02:56]} 6. d4 {[%clk 0:02:38]}  cxd4 {[%clk 0:02:56]} 7. Nxd4 {[%clk 0:02:39]}  Bd7 {[%clk 0:02:57]} 8. Bg5 {[%clk 0:02:36]}  Rc8 {[%clk 0:02:31]} 9. O-O {[%clk 0:02:22]}  a6 {[%clk 0:02:17]} 10. b3 {[%clk 0:02:18]}  e6 {[%clk 0:02:12]} 11. Ne4 {[%clk 0:02:05]}  Be7 {[%clk 0:02:09]} 12. Bxf6 {[%clk 0:01:55]}  gxf6 {[%clk 0:02:02]} 13. Nf3 {[%clk 0:01:30]}  Qc7 {[%clk 0:01:52]} 14. Qd2 {[%clk 0:01:10]}  f5 {[%clk 0:01:47]} 15. Nc3 {[%clk 0:01:02]}  h4 {[%clk 0:01:41]} 16. Rad1 {[%clk 0:01:01]}  hxg3 {[%clk 0:01:31]} 17. hxg3 {[%clk 0:01:00]}  Ne5 {[%clk 0:01:29]} 18. Nxe5 {[%clk 0:00:58]}  dxe5 {[%clk 0:01:29]} 19. Qxd7+ {[%clk 0:00:46]}  Qxd7 {[%clk 0:01:29]} 20. Rxd7 {[%clk 0:00:47]}  Kxd7 {[%clk 0:01:30]} 21. Bxb7 {[%clk 0:00:47]}  Rcd8 {[%clk 0:01:15]} 22. Bxa6 {[%clk 0:00:46]}  e4 {[%clk 0:01:15]} 23. a4 {[%clk 0:00:40]}  Kc7 {[%clk 0:01:12]} 24. Rd1 {[%clk 0:00:37]}  Bb4 {[%clk 0:01:10]} 25. Rxd8 {[%clk 0:00:29]}  Rxd8 {[%clk 0:01:11]} 26. Na2 {[%clk 0:00:23]}  Rd1+ {[%clk 0:01:05]} 27. Kg2 {[%clk 0:00:22]}  Bd2 {[%clk 0:01:05]} 28. c5 {[%clk 0:00:04]}  Ra1 {[%clk 0:01:05]} 0-1


[Site "https://www.chess.com"]